[Event "*** Titled Tuesday Blitz"]
[Site "Chess.com"]
[Date "2020.05.12"]
[Round "4"]
[White "MikaelyanArman"]
[Black "gvanna"]
[Result "1-0"]
[WhiteElo "2678"]
[BlackElo "2476"]
[TimeControl "180+1"]
[EndTime "10:40:32 PDT"]
[Termination "MikaelyanArman won by checkmate"]

1. d4 {[%clk 0:03:00.9]} 1... d5 {[%clk 0:02:59.8]} 2. c4 {[%clk 0:02:58.2]}
2... c6 {[%clk 0:02:59.9]} 3. Nc3 {[%clk 0:02:58.1]} 3... e5 {[%clk 0:02:59.4]}
4. e3 {[%clk 0:02:53.7]} 4... e4 {[%clk 0:02:58.7]} 5. Qb3 {[%clk 0:02:49]} 5...
Nf6 {[%clk 0:02:58.2]} 6. Nh3 {[%clk 0:02:38.3]} 6... Bd6 {[%clk 0:02:52.3]} 7.
Bd2 {[%clk 0:02:32.7]} 7... O-O {[%clk 0:02:36]} 8. cxd5 {[%clk 0:02:29.7]} 8...
cxd5 {[%clk 0:02:36]} 9. Nxd5 {[%clk 0:02:25.6]} 9... Nc6 {[%clk 0:02:18.2]} 10.
Nc3 {[%clk 0:01:59.3]} 10... Bxh3 {[%clk 0:02:14.1]} 11. gxh3 {[%clk 0:01:58.6]}
11... Qe7 {[%clk 0:01:52.7]} 12. O-O-O {[%clk 0:01:43.8]} 12... Rac8 {[%clk
0:01:51.9]} 13. Kb1 {[%clk 0:01:42.9]} 13... a6 {[%clk 0:01:51.7]} 14. Rg1
{[%clk 0:01:34.7]} 14... b5 {[%clk 0:01:42.4]} 15. Nd5 {[%clk 0:01:32.5]} 15...
Nxd5 {[%clk 0:01:40.4]} 16. Qxd5 {[%clk 0:01:33.4]} 16... Bxh2 {[%clk 0:01:37]}
17. Rg4 {[%clk 0:01:27.2]} 17... Rfe8 {[%clk 0:01:28.1]} 18. Bg2 {[%clk
0:01:20.7]} 18... Qf6 {[%clk 0:01:08.8]} 19. Qg5 {[%clk 0:01:07.1]} 19... Qxg5
{[%clk 0:01:03.1]} 20. Rxg5 {[%clk 0:01:08]} 20... g6 {[%clk 0:00:53.8]} 21. Rc5
{[%clk 0:00:56.9]} 21... Bd6 {[%clk 0:00:50.8]} 22. Rd5 {[%clk 0:00:57.1]} 22...
Bh2 {[%clk 0:00:40.9]} 23. Rc1 {[%clk 0:00:54]} 23... f5 {[%clk 0:00:38.9]} 24.
Rdc5 {[%clk 0:00:50.5]} 24... Ne7 {[%clk 0:00:36.8]} 25. f3 {[%clk 0:00:44.1]}
25... exf3 {[%clk 0:00:34.4]} 26. Bxf3 {[%clk 0:00:45]} 26... Bd6 {[%clk
0:00:23.1]} 27. Rxc8 {[%clk 0:00:39.9]} 27... Nxc8 {[%clk 0:00:20]} 28. Bb7
{[%clk 0:00:35.6]} 28... Nb6 {[%clk 0:00:20.3]} 29. b3 {[%clk 0:00:32.9]} 29...
Rb8 {[%clk 0:00:16.7]} 30. Bf3 {[%clk 0:00:28.4]} 30... Bg3 {[%clk 0:00:13]} 31.
Ba5 {[%clk 0:00:27.1]} 31... Bf2 {[%clk 0:00:10.8]} 32. Rc6 {[%clk 0:00:25.5]}
32... Nd7 {[%clk 0:00:10.4]} 33. Rd6 {[%clk 0:00:25.6]} 33... Nf8 {[%clk
0:00:08.5]} 34. e4 {[%clk 0:00:20.1]} 34... fxe4 {[%clk 0:00:07.6]} 35. Bxe4
{[%clk 0:00:21]} 35... Re8 {[%clk 0:00:05]} 36. Bd5+ {[%clk 0:00:21.2]} 36...
Kg7 {[%clk 0:00:05]} 37. Bc3 {[%clk 0:00:19.5]} 37... Re2 {[%clk 0:00:03.9]} 38.
Rxa6 {[%clk 0:00:17.4]} 38... Re3 {[%clk 0:00:04.3]} 39. Kc2 {[%clk 0:00:16.9]}
39... Rxh3 {[%clk 0:00:04.1]} 40. Bc6 {[%clk 0:00:14.9]} 40... Ne6 {[%clk
0:00:03.9]} 41. d5+ {[%clk 0:00:15]} 41... Nd4+ {[%clk 0:00:04.4]} 42. Bxd4+
{[%clk 0:00:12.1]} 42... Bxd4 {[%clk 0:00:04.2]} 43. d6 {[%clk 0:00:12.6]} 43...
Bf6 {[%clk 0:00:02.7]} 44. d7 {[%clk 0:00:12.2]} 44... b4 {[%clk 0:00:03.1]} 45.
Bb5 {[%clk 0:00:10.4]} 45... Rc3+ {[%clk 0:00:03.1]} 46. Kd2 {[%clk 0:00:10.4]}
46... Bg5+ {[%clk 0:00:03.5]} 47. Ke2 {[%clk 0:00:10.3]} 47... h5 {[%clk
0:00:03.7]} 48. Ra8 {[%clk 0:00:09.2]} 48... Rc2+ {[%clk 0:00:04.2]} 49. Kf3
{[%clk 0:00:07.8]} 49... Rd2 {[%clk 0:00:04.6]} 50. Bc6 {[%clk 0:00:06.5]} 50...
Bf6 {[%clk 0:00:04.8]} 51. Re8 {[%clk 0:00:05.8]} 51... g5 {[%clk 0:00:04.9]}
52. Ke4 {[%clk 0:00:04.8]} 52... Kf7 {[%clk 0:00:04.6]} 53. Bd5+ {[%clk
0:00:04.6]} 53... Kg7 {[%clk 0:00:04.6]} 54. d8=Q {[%clk 0:00:03.8]} 54... Bxd8
{[%clk 0:00:03.6]} 55. Rxd8 {[%clk 0:00:04.7]} 55... Rxa2 {[%clk 0:00:03.9]} 56.
Rg8+ {[%clk 0:00:04.3]} 56... Kf6 {[%clk 0:00:03.9]} 57. Rf8+ {[%clk 0:00:04.7]}
57... Kg6 {[%clk 0:00:04.4]} 58. Rb8 {[%clk 0:00:03.8]} 58... Re2+ {[%clk
0:00:04.4]} 59. Kf3 {[%clk 0:00:04.3]} 59... Rd2 {[%clk 0:00:04.6]} 60. Be4+
{[%clk 0:00:04.4]} 60... Kf6 {[%clk 0:00:05.1]} 61. Rb6+ {[%clk 0:00:04.9]}
61... Kf7 {[%clk 0:00:04.8]} 62. Rxb4 {[%clk 0:00:04.7]} 62... g4+ {[%clk
0:00:02.2]} 63. Kf4 {[%clk 0:00:05.2]} 63... Rf2+ {[%clk 0:00:02.5]} 64. Kg3
{[%clk 0:00:04.2]} 64... Re2 {[%clk 0:00:02.9]} 65. Bf5 {[%clk 0:00:03.3]} 65...
Re3+ {[%clk 0:00:02.7]} 66. Kf4 {[%clk 0:00:02.9]} 66... Rh3 {[%clk 0:00:03.3]}
67. Rb7+ {[%clk 0:00:01.2]} 67... Kf6 {[%clk 0:00:03.6]} 68. Rb6+ {[%clk
0:00:02.1]} 68... Ke7 {[%clk 0:00:03.5]} 69. Ke5 {[%clk 0:00:03]} 69... Kd8
{[%clk 0:00:03.6]} 70. Kd6 {[%clk 0:00:02.4]} 70... Rc3 {[%clk 0:00:03]} 71.
Rb8+ {[%clk 0:00:01.7]} 71... Rc8 {[%clk 0:00:01.7]} 72. Rxc8# {[%clk
0:00:02.6]} 1-0

[Event "*** Titled Tuesday Blitz"]
[Site "Chess.com"]
[Date "2020.05.12"]
[Round "4"]
[White "NastaJ"]
[Black "aquiles88"]
[Result "0-1"]
[WhiteElo "1964"]
[BlackElo "2222"]
[TimeControl "180+1"]
[EndTime "10:40:35 PDT"]
[Termination "aquiles88 won on time"]

1. e4 {[%clk 0:03:00]} 1... d6 {[%clk 0:02:58.5]} 2. d4 {[%clk 0:02:59.6]} 2...
g6 {[%clk 0:02:58.2]} 3. Nc3 {[%clk 0:02:58.7]} 3... Bg7 {[%clk 0:02:58]} 4. Nf3
{[%clk 0:02:58.5]} 4... a6 {[%clk 0:02:57.6]} 5. a4 {[%clk 0:02:56.3]} 5... b6
{[%clk 0:02:56.5]} 6. Be2 {[%clk 0:02:49.2]} 6... Bb7 {[%clk 0:02:55.5]} 7. Be3
{[%clk 0:02:49.3]} 7... Nd7 {[%clk 0:02:54.8]} 8. O-O {[%clk 0:02:49.1]} 8... e6
{[%clk 0:02:53.6]} 9. Bg5 {[%clk 0:02:34.3]} 9... Ne7 {[%clk 0:02:51.6]} 10. Qd2
{[%clk 0:02:31.3]} 10... h6 {[%clk 0:02:50.3]} 11. Bh4 {[%clk 0:02:17.2]} 11...
Nf6 {[%clk 0:02:48.6]} 12. Bxf6 {[%clk 0:01:42.2]} 12... Bxf6 {[%clk 0:02:46.9]}
13. Qf4 {[%clk 0:01:42.2]} 13... Bg7 {[%clk 0:02:41]} 14. h4 {[%clk 0:01:39.7]}
14... O-O {[%clk 0:02:35.6]} 15. h5 {[%clk 0:01:19.5]} 15... g5 {[%clk
0:02:33.6]} 16. Qd2 {[%clk 0:01:08.2]} 16... Nc6 {[%clk 0:02:25.2]} 17. d5
{[%clk 0:01:00.4]} 17... Ne5 {[%clk 0:02:18]} 18. Nxe5 {[%clk 0:00:55.5]} 18...
Bxe5 {[%clk 0:02:15.8]} 19. g3 {[%clk 0:00:50.6]} 19... exd5 {[%clk 0:01:44.1]}
20. exd5 {[%clk 0:00:44.6]} 20... Re8 {[%clk 0:01:38.7]} 21. Bg4 {[%clk
0:00:37.7]} 21... Bc8 {[%clk 0:01:34.9]} 22. Bxc8 {[%clk 0:00:30]} 22... Qxc8
{[%clk 0:01:34.3]} 23. Kg2 {[%clk 0:00:28.8]} 23... Qg4 {[%clk 0:01:29.5]} 24.
Qd3 {[%clk 0:00:27.5]} 24... Kg7 {[%clk 0:01:14.9]} 25. Rae1 {[%clk 0:00:25.5]}
25... Qxh5 {[%clk 0:01:11.7]} 26. Re4 {[%clk 0:00:22.8]} 26... Qg6 {[%clk
0:01:06.1]} 27. Rh1 {[%clk 0:00:21.3]} 27... Re7 {[%clk 0:00:34.8]} 28. Re3
{[%clk 0:00:19]} 28... Qxd3 {[%clk 0:00:32.6]} 29. Rxd3 {[%clk 0:00:18.7]} 29...
Rae8 {[%clk 0:00:30.1]} 30. Nd1 {[%clk 0:00:17.3]} 30... Bf6 {[%clk 0:00:27.9]}
31. Ne3 {[%clk 0:00:13.9]} 31... Kg6 {[%clk 0:00:22.3]} 32. c4 {[%clk
0:00:13.7]} 32... Bxb2 {[%clk 0:00:19.2]} 33. Rb1 {[%clk 0:00:12.8]} 33... Bg7
{[%clk 0:00:17.5]} 34. Rdb3 {[%clk 0:00:10.8]} 34... a5 {[%clk 0:00:11.3]} 35.
Rd3 {[%clk 0:00:09.6]} 35... f5 {[%clk 0:00:11.2]} 36. Rc1 {[%clk 0:00:09.5]}
36... Re4 {[%clk 0:00:10.6]} 37. Rb3 {[%clk 0:00:09.2]} 37... f4 {[%clk
0:00:10.4]} 38. gxf4 {[%clk 0:00:08.1]} 38... gxf4 {[%clk 0:00:11.3]} 39. Ng4
{[%clk 0:00:08]} 39... h5 {[%clk 0:00:11.4]} 40. Nh2 {[%clk 0:00:08]} 40... Kf5
{[%clk 0:00:10.3]} 41. Nf3 {[%clk 0:00:06.6]} 41... Rg8 {[%clk 0:00:10]} 42. Kf1
{[%clk 0:00:06.1]} 42... Be5 {[%clk 0:00:09.3]} 43. Nh4+ {[%clk 0:00:06]} 43...
Kg4 {[%clk 0:00:09.2]} 44. f3+ {[%clk 0:00:05.6]} 44... Kxh4 {[%clk 0:00:09.4]}
45. fxe4 {[%clk 0:00:06.5]} 45... Kg5 {[%clk 0:00:09.8]} 46. Kf2 {[%clk
0:00:06.7]} 46... Kf6 {[%clk 0:00:09.7]} 47. Rh1 {[%clk 0:00:07.1]} 47... Rg5
{[%clk 0:00:10.1]} 48. Rh2 {[%clk 0:00:07]} 48... Kg6 {[%clk 0:00:10.1]} 49.
Rbh3 {[%clk 0:00:07.2]} 49... Kh6 {[%clk 0:00:09.9]} 50. Rh1 {[%clk 0:00:07.4]}
50... Kg6 {[%clk 0:00:09.3]} 51. Rh4 {[%clk 0:00:08.3]} 51... Kh6 {[%clk
0:00:08.4]} 52. R4h3 {[%clk 0:00:08.7]} 52... Bd4+ {[%clk 0:00:08.1]} 53. Kf3
{[%clk 0:00:08.5]} 53... Be5 {[%clk 0:00:07.8]} 54. Rh4 {[%clk 0:00:08]} 54...
Rg3+ {[%clk 0:00:07.7]} 55. Ke2 {[%clk 0:00:03.4]} 55... Rg6 {[%clk 0:00:07.7]}
56. Rf1 {[%clk 0:00:02.3]} 56... Rg4 {[%clk 0:00:07.1]} 0-1

[Event "*** Titled Tuesday Blitz"]
[Site "Chess.com"]
[Date "2020.05.12"]
[Round "4"]
[White "GuerrieroFromLevant"]
[Black "grandcoach"]
[Result "1-0"]
[WhiteElo "2381"]
[BlackElo "2023"]
[TimeControl "180+1"]
[EndTime "10:40:36 PDT"]
[Termination "GuerrieroFromLevant won on time"]

1. e4 {[%clk 0:03:00.9]} 1... c5 {[%clk 0:02:59.1]} 2. Nf3 {[%clk 0:03:00.8]}
2... Nc6 {[%clk 0:02:57.8]} 3. Bb5 {[%clk 0:03:00.9]} 3... e6 {[%clk 0:02:53]}
4. O-O {[%clk 0:02:59.4]} 4... Nge7 {[%clk 0:02:50]} 5. Re1 {[%clk 0:02:59.9]}
5... a6 {[%clk 0:02:50.4]} 6. Bf1 {[%clk 0:02:59.1]} 6... d5 {[%clk 0:02:47.9]}
7. exd5 {[%clk 0:03:00]} 7... Nxd5 {[%clk 0:02:47.7]} 8. d4 {[%clk 0:03:00.2]}
8... Be7 {[%clk 0:02:23.6]} 9. c4 {[%clk 0:02:54.1]} 9... Nf6 {[%clk 0:02:19.3]}
10. Be3 {[%clk 0:02:54]} 10... cxd4 {[%clk 0:02:15.6]} 11. Nxd4 {[%clk
0:02:53.6]} 11... Bd7 {[%clk 0:02:13.1]} 12. Nc3 {[%clk 0:02:50.3]} 12... O-O
{[%clk 0:02:10.6]} 13. a3 {[%clk 0:02:48.2]} 13... Nxd4 {[%clk 0:02:06.1]} 14.
Bxd4 {[%clk 0:02:48.3]} 14... Bc6 {[%clk 0:02:06.7]} 15. Qd3 {[%clk 0:02:46.5]}
15... Qa5 {[%clk 0:01:38.5]} 16. b4 {[%clk 0:02:41.3]} 16... Qg5 {[%clk
0:01:35.1]} 17. g3 {[%clk 0:02:33.4]} 17... Rfd8 {[%clk 0:01:33.3]} 18. Rad1
{[%clk 0:02:19.6]} 18... Rd7 {[%clk 0:01:16.3]} 19. Qe3 {[%clk 0:01:35.2]} 19...
Qh5 {[%clk 0:01:08.3]} 20. h3 {[%clk 0:01:16.4]} 20... Rad8 {[%clk 0:01:06.8]}
21. Rd3 {[%clk 0:01:03]} 21... Rxd4 {[%clk 0:00:58.6]} 22. Rxd4 {[%clk
0:01:01.1]} 22... Rxd4 {[%clk 0:00:58.4]} 23. Qxd4 {[%clk 0:00:56.9]} 23... Qf3
{[%clk 0:00:58.1]} 24. Nd5 {[%clk 0:00:52.1]} 24... Nxd5 {[%clk 0:00:50.4]} 25.
Bg2 {[%clk 0:00:45]} 25... Qc3 {[%clk 0:00:45.9]} 26. Qxc3 {[%clk 0:00:35.7]}
26... Nxc3 {[%clk 0:00:46.8]} 27. Bxc6 {[%clk 0:00:32.4]} 27... bxc6 {[%clk
0:00:47.7]} 28. Re3 {[%clk 0:00:32.7]} 28... Na4 {[%clk 0:00:42.9]} 29. Rd3
{[%clk 0:00:28.2]} 29... Nb6 {[%clk 0:00:42.8]} 30. a4 {[%clk 0:00:21.8]} 30...
Bxb4 {[%clk 0:00:36.4]} 31. Rd8+ {[%clk 0:00:20.2]} 31... Bf8 {[%clk 0:00:36.2]}
32. c5 {[%clk 0:00:17.7]} 32... Nxa4 {[%clk 0:00:35.8]} 33. Rc8 {[%clk
0:00:16.8]} 33... Nxc5 {[%clk 0:00:34.7]} 34. Rxc6 {[%clk 0:00:17.7]} 34... g6
{[%clk 0:00:33.2]} 35. Kf1 {[%clk 0:00:18.1]} 35... Kg7 {[%clk 0:00:33]} 36. Ke2
{[%clk 0:00:18.7]} 36... a5 {[%clk 0:00:29.7]} 37. Ke3 {[%clk 0:00:17.6]} 37...
a4 {[%clk 0:00:29.6]} 38. Kd4 {[%clk 0:00:17.9]} 38... a3 {[%clk 0:00:27.9]} 39.
Rc8 {[%clk 0:00:16.6]} 39... Nb3+ {[%clk 0:00:27.4]} 40. Kc3 {[%clk 0:00:16]}
40... Nc5 {[%clk 0:00:24.8]} 41. Ra8 {[%clk 0:00:15.6]} 41... Ne4+ {[%clk
0:00:24.8]} 42. Kd3 {[%clk 0:00:14.7]} 42... Nxf2+ {[%clk 0:00:25.7]} 43. Ke2
{[%clk 0:00:14.4]} 43... Ne4 {[%clk 0:00:25.1]} 44. Kf3 {[%clk 0:00:14.5]} 44...
f5 {[%clk 0:00:24.6]} 45. g4 {[%clk 0:00:14.2]} 45... Nf6 {[%clk 0:00:22.4]} 46.
g5 {[%clk 0:00:14.3]} 46... Nd5 {[%clk 0:00:21.8]} 47. Ra7+ {[%clk 0:00:14.7]}
47... Kg8 {[%clk 0:00:21.2]} 48. h4 {[%clk 0:00:15]} 48... Be7 {[%clk
0:00:20.4]} 49. Ke2 {[%clk 0:00:13.6]} 49... Kf7 {[%clk 0:00:20.1]} 50. Kf3
{[%clk 0:00:13.6]} 50... e5 {[%clk 0:00:19.4]} 51. Ke2 {[%clk 0:00:14.1]} 51...
e4 {[%clk 0:00:18]} 52. Ra5 {[%clk 0:00:14.8]} 52... Ke6 {[%clk 0:00:17.5]} 53.
Ra6+ {[%clk 0:00:14.7]} 53... Bd6 {[%clk 0:00:17]} 54. Ra7 {[%clk 0:00:15.3]}
54... Be7 {[%clk 0:00:13.2]} 55. Ra6+ {[%clk 0:00:15.2]} 55... Ke5 {[%clk
0:00:13.2]} 56. Kf2 {[%clk 0:00:14.2]} 56... f4 {[%clk 0:00:13]} 57. Ke2 {[%clk
0:00:14.4]} 57... f3+ {[%clk 0:00:12.7]} 58. Kf2 {[%clk 0:00:14.9]} 58... Bc5+
{[%clk 0:00:11.1]} 59. Kf1 {[%clk 0:00:14.8]} 59... e3 {[%clk 0:00:10.8]} 60.
Ra4 {[%clk 0:00:14.7]} 60... e2+ {[%clk 0:00:09.5]} 61. Ke1 {[%clk 0:00:15.2]}
61... Nf4 {[%clk 0:00:07.6]} 62. Rc4 {[%clk 0:00:14.9]} 62... Nd3+ {[%clk
0:00:07.4]} 63. Kd2 {[%clk 0:00:15.6]} 63... e1=Q+ {[%clk 0:00:06.5]} 64. Kxd3
{[%clk 0:00:16.5]} 64... Qe3+ {[%clk 0:00:06.3]} 65. Kc2 {[%clk 0:00:16.4]}
65... a2 {[%clk 0:00:06.2]} 66. Ra4 {[%clk 0:00:15.8]} 66... Qe2+ {[%clk
0:00:05.8]} 67. Kb3 {[%clk 0:00:16.3]} 67... Bd4 {[%clk 0:00:05.9]} 68. Rxa2
{[%clk 0:00:16.3]} 68... Ke4 {[%clk 0:00:06.1]} 69. Rxe2+ {[%clk 0:00:16]} 69...
fxe2 {[%clk 0:00:06.8]} 70. h5 {[%clk 0:00:16.8]} 70... e1=Q {[%clk 0:00:06.9]}
71. hxg6 {[%clk 0:00:17.7]} 71... hxg6 {[%clk 0:00:06.2]} 72. Ka4 {[%clk
0:00:18.6]} 72... Qc3 {[%clk 0:00:05.2]} 73. Kb5 {[%clk 0:00:19.5]} 73... Be5
{[%clk 0:00:04.7]} 74. Ka6 {[%clk 0:00:20.4]} 74... Bc7 {[%clk 0:00:04.4]} 75.
Kb7 {[%clk 0:00:21.3]} 75... Qc5 {[%clk 0:00:04.1]} 76. Kc8 {[%clk 0:00:22.2]}
76... Bb6+ {[%clk 0:00:03.6]} 77. Kd7 {[%clk 0:00:23.1]} 77... Qd5+ {[%clk
0:00:03.5]} 78. Ke7 {[%clk 0:00:23.4]} 78... Qc6 {[%clk 0:00:02.2]} 79. Kf7
{[%clk 0:00:24]} 79... Bc5 {[%clk 0:00:02.8]} 80. Kg7 {[%clk 0:00:24.8]} 80...
Bd4+ {[%clk 0:00:03]} 81. Kh7 {[%clk 0:00:25.7]} 81... Qd7+ {[%clk 0:00:02.2]}
82. Kh6 {[%clk 0:00:26.6]} 82... Qd6 {[%clk 0:00:01.3]} 83. Kh7 {[%clk
0:00:26.7]} 83... Qh2+ {[%clk 0:00:01.9]} 84. Kg8 {[%clk 0:00:27.1]} 1-0

[Event "*** Titled Tuesday Blitz"]
[Site "Chess.com"]
[Date "2020.05.12"]
[Round "4"]
[White "mishanick"]
[Black "Volodar_Murzin"]
[Result "0-1"]
[WhiteElo "2956"]
[BlackElo "2730"]
[TimeControl "180+1"]
[EndTime "10:40:37 PDT"]
[Termination "Volodar_Murzin won on time"]

1. Nf3 {[%clk 0:03:00.9]} 1... Nf6 {[%clk 0:02:59.7]} 2. d4 {[%clk 0:03:01.4]}
2... g6 {[%clk 0:02:59.6]} 3. c4 {[%clk 0:03:01.7]} 3... Bg7 {[%clk 0:02:59.9]}
4. Nc3 {[%clk 0:03:02.4]} 4... O-O {[%clk 0:03:00.5]} 5. e4 {[%clk 0:03:01.2]}
5... d6 {[%clk 0:03:01]} 6. Be2 {[%clk 0:03:01.8]} 6... e5 {[%clk 0:03:00.9]} 7.
Be3 {[%clk 0:03:02.4]} 7... Nc6 {[%clk 0:02:58]} 8. d5 {[%clk 0:03:02.6]} 8...
Ne7 {[%clk 0:02:57.4]} 9. Nd2 {[%clk 0:03:03.2]} 9... a5 {[%clk 0:02:55.7]} 10.
c5 {[%clk 0:02:46.4]} 10... Ne8 {[%clk 0:02:44.9]} 11. Nc4 {[%clk 0:02:41]}
11... f5 {[%clk 0:02:44.3]} 12. f3 {[%clk 0:02:41.5]} 12... Kh8 {[%clk
0:01:59.6]} 13. O-O {[%clk 0:02:29.6]} 13... Ng8 {[%clk 0:01:56.2]} 14. cxd6
{[%clk 0:02:16.6]} 14... Nxd6 {[%clk 0:01:51.1]} 15. Nxd6 {[%clk 0:02:01.6]}
15... cxd6 {[%clk 0:01:52]} 16. Na4 {[%clk 0:02:00.5]} 16... Nf6 {[%clk
0:01:33.9]} 17. Nb6 {[%clk 0:01:58.9]} 17... Rb8 {[%clk 0:01:34.1]} 18. Qa4
{[%clk 0:01:52.2]} 18... fxe4 {[%clk 0:01:17.9]} 19. fxe4 {[%clk 0:01:51.6]}
19... Bg4 {[%clk 0:01:16.2]} 20. Bd3 {[%clk 0:01:46.9]} 20... Qe7 {[%clk
0:00:59.1]} 21. Qxa5 {[%clk 0:01:42.9]} 21... Nh5 {[%clk 0:00:58.4]} 22. Qd2
{[%clk 0:01:19]} 22... Nf4 {[%clk 0:00:54.3]} 23. a4 {[%clk 0:01:18.6]} 23...
Rf7 {[%clk 0:00:45.6]} 24. Rf2 {[%clk 0:01:07.4]} 24... Rbf8 {[%clk 0:00:44.4]}
25. Raf1 {[%clk 0:01:07.9]} 25... Qh4 {[%clk 0:00:30.5]} 26. a5 {[%clk
0:00:58.5]} 26... Bh6 {[%clk 0:00:16.8]} 27. Nc4 {[%clk 0:00:54.1]} 27... Qe7
{[%clk 0:00:11.1]} 28. b4 {[%clk 0:00:36.4]} 28... Bg5 {[%clk 0:00:10.5]} 29. b5
{[%clk 0:00:25.4]} 29... Bh4 {[%clk 0:00:10.1]} 30. g3 {[%clk 0:00:14.1]} 30...
Nh3+ {[%clk 0:00:09.8]} 31. Kg2 {[%clk 0:00:14.7]} 31... Nxf2 {[%clk 0:00:09.9]}
32. Rxf2 {[%clk 0:00:14.4]} 32... Rxf2+ {[%clk 0:00:09.1]} 33. Bxf2 {[%clk
0:00:14.8]} 33... Bg5 {[%clk 0:00:09.6]} 34. Qe1 {[%clk 0:00:13.5]} 34... Qf6
{[%clk 0:00:08.5]} 35. Kg1 {[%clk 0:00:08.9]} 35... Qf3 {[%clk 0:00:06]} 36. Bf1
{[%clk 0:00:09]} 36... Qb3 {[%clk 0:00:04.8]} 37. Nxd6 {[%clk 0:00:07.2]} 37...
Be7 {[%clk 0:00:03.6]} 38. Nc4 {[%clk 0:00:05.3]} 38... Bf6 {[%clk 0:00:03.7]}
39. a6 {[%clk 0:00:05]} 39... bxa6 {[%clk 0:00:03.6]} 40. bxa6 {[%clk
0:00:05.9]} 40... Qa2 {[%clk 0:00:04.1]} 41. a7 {[%clk 0:00:06.1]} 41... Bg7
{[%clk 0:00:03.6]} 42. Be3 {[%clk 0:00:05.7]} 42... Bc8 {[%clk 0:00:03.1]} 43.
Qd2 {[%clk 0:00:05.5]} 43... Qa1 {[%clk 0:00:02.2]} 44. Bf2 {[%clk 0:00:05.9]}
44... Bb7 {[%clk 0:00:02]} 45. Nd6 {[%clk 0:00:05.6]} 45... Ba6 {[%clk
0:00:01.7]} 46. Qe1 {[%clk 0:00:04.4]} 46... Qa4 {[%clk 0:00:02.2]} 47. Bg2
{[%clk 0:00:03.2]} 47... Bd3 {[%clk 0:00:01.9]} 48. Qe3 {[%clk 0:00:01.9]} 48...
Bc2 {[%clk 0:00:01.8]} 49. Qe2 {[%clk 0:00:01.9]} 49... Bb3 {[%clk 0:00:01.8]}
50. Qe1 {[%clk 0:00:02.3]} 50... Qa2 {[%clk 0:00:02]} 51. h4 {[%clk 0:00:02.6]}
51... Bh6 {[%clk 0:00:01.9]} 52. Nb7 {[%clk 0:00:03.1]} 52... Bg7 {[%clk
0:00:02.2]} 53. Nc5 {[%clk 0:00:02.8]} 53... Bc4 {[%clk 0:00:02.7]} 54. Ne6
{[%clk 0:00:03.4]} 54... Re8 {[%clk 0:00:02.6]} 55. Nc7 {[%clk 0:00:03.9]} 55...
Rc8 {[%clk 0:00:02.5]} 56. a8=Q {[%clk 0:00:04.4]} 56... Rxa8 {[%clk 0:00:03.1]}
57. Nxa8 {[%clk 0:00:05.3]} 57... Qxa8 {[%clk 0:00:03.9]} 58. Qc3 {[%clk
0:00:06]} 58... Qa6 {[%clk 0:00:03.7]} 59. Be3 {[%clk 0:00:06.2]} 59... Bb5
{[%clk 0:00:04]} 60. Bg5 {[%clk 0:00:06.3]} 60... Qb7 {[%clk 0:00:03.7]} 61. Qc5
{[%clk 0:00:06.1]} 61... Qd7 {[%clk 0:00:03.8]} 62. Kh2 {[%clk 0:00:06.1]} 62...
Kg8 {[%clk 0:00:03.5]} 63. Bh3 {[%clk 0:00:05.2]} 63... Qe8 {[%clk 0:00:04.1]}
64. Be6+ {[%clk 0:00:05.1]} 64... Kh8 {[%clk 0:00:04.8]} 65. Qc7 {[%clk
0:00:05]} 65... Bd3 {[%clk 0:00:04.8]} 66. Qc6 {[%clk 0:00:03.5]} 66... Qf8
{[%clk 0:00:04.9]} 67. Be3 {[%clk 0:00:03.2]} 67... Qf3 {[%clk 0:00:04.1]} 68.
Qc8+ {[%clk 0:00:02.8]} 68... Bf8 {[%clk 0:00:04.4]} 69. Bf5 {[%clk 0:00:03.1]}
69... Qe2+ {[%clk 0:00:04.1]} 70. Kh1 {[%clk 0:00:03.3]} 70... Qf1+ {[%clk
0:00:04.1]} 71. Bg1 {[%clk 0:00:03.6]} 71... Qf3+ {[%clk 0:00:03.8]} 72. Kh2
{[%clk 0:00:04.2]} 72... Kg8 {[%clk 0:00:04.2]} 73. Qe6+ {[%clk 0:00:03.7]}
73... Kg7 {[%clk 0:00:04]} 0-1